[Event "9. Korbacher Open 2017"]
[Site "Korbach"]
[Date "2017.10.22"]
[Round "6"]
[White "Plaza Reino, Mercedes"]
[Black "Bayer, Martin"]
[Result "1-0"]
[ECO "D02"]
[WhiteElo "1822"]
[BlackElo "1732"]
[Annotator "NA"]
[PlyCount "97"]
[EventDate "2017.??.??"]
[EventType "swiss"]
[EventCountry "GER"]
[SourceTitle "playchess.com"]
[Source "ChessBase"]
[SourceQuality "1"]
[TimeControl "40/5400+30:1800+30"]

1. d4 {[%emt 0:00:00]} d5 {[%emt 0:07:23]} 2. Nf3 {[%emt 0:00:16]} Nf6 {[%emt 0:00:10]} 3. Bf4 {[%emt 0:01:24]} Bf5 {[%emt 0:00:27]} 4. e3 {[%emt 0:02:25]} e6 {[%emt 0:00:19]} 5. h3 {[%emt 0:01:05]} c5 {[%emt 0:00:25]} 6. c3 {[%emt 0:03:16]} Nc6 {[%emt 0:00:23]} 7. Be2 {[%emt 0:03:07]} Be7 {[%emt 0:02:13]} 8. O-O {[%emt 0:02:03]} O-O {[%emt 0:00:36]} 9. Nbd2 {[%emt 0:04:54]} Ne4 {[%emt 0:03:29]} 10. Ne5 {[%emt 0:07:26]} f6 $11 {[%emt 0:02:03]} 11. Nxc6 {[%emt 0:02:51]} bxc6 {[%emt 0:00:06]} 12. Nxe4 {[%emt 0:07:33]} Bxe4 {[%emt 0:00:18]} 13. Bd3 {[%emt 0:02:35]} Bxd3 {[%emt 0:01:02]} 14. Qxd3 {[%emt 0:00:02]} Qb6 {[%emt 0:01:36]} 15. Qc2 {[%emt 0:06:13]} Rfc8 {[%emt 0:02:09]} 16. Qe2 {[%emt 0:21:41]} cxd4 {[%emt 0:12:30]} 17. exd4 {[%emt 0:00:32]} c5 {[%emt 0:00:14]} 18. Be3 {[%emt 0:08:49]} Rab8 {[%emt 0:08:03]} 19. b3 {[%emt 0:02:46]} c4 {[%emt 0:09:04]} 20. b4 {[%emt 0:02:05]} Re8 {[%emt 0:10:37]} 21. a4 {[%emt 0:08:50]} Qc7 {[%emt 0:01:59]} 22. Qc2 {[%emt 0:02:37]} e5 {[%emt 0:05:15]} 23. Rfd1 {[%emt 0:00:54]} Red8 {[%emt 0:03:34]} 24. Qf5 {[%emt 0:01:57]} Qd7 {[%emt 0:10:38]} 25. Qxd7 {[%emt 0:00:58]} Rxd7 {[%emt 0:00:01]} 26. Rd2 {[%emt 0:00:52]} Rbd8 {[%emt 0:00:49]} 27. Rad1 {[%emt 0:00:32]} Kf7 {[%emt 0:00:25]} 28. b5 {[%emt 0:02:45]} Ke6 {[%emt 0:01:26]} 29. Rb1 {[%emt 0:00:49]} Rb7 {[%emt 0:02:21]} 30. Kf1 {[%emt 0:01:18]} Rdb8 {[%emt 0:00:30]} 31. Rbd1 {[%emt 0:01:00]} Rd8 {[%emt 0:00:17]} 32. Rb1 {[%emt 0:01:22]} a6 {[%emt 0:02:12]} 33. b6 {[%emt 0:00:49]} a5 {[%emt 0:01:36]} 34. Rb5 {[%emt 0:00:24]} Ra8 {[%emt 0:00:20]} 35. dxe5 {[%emt 0:00:23]} fxe5 {[%emt 0:00:31]} 36. Rbxd5 {[%emt 0:00:28]} h6 {[%emt 0:01:35]} 37. Ke2 {[%emt 0:00:06]} Bf6 {[%emt 0:00:40]} 38. Rd6+ {[%emt 0:00:21]} Kf5 {[%emt 0:01:10]} 39. R2d5 {[%emt 0:00:49]} Be7 {[%emt 0:04:06]} 40. Rd7 Rab8 {[%emt 0:30:45]} 41. Rxb7 {[%emt 0:05:42]} Rxb7 42. Rxa5 {[%emt 0:00:21]} Ke6 {[%emt 0:00:00]} 43. Ra7 {[%emt 0:00:18]} Rb8 {[%emt 0:00:00]} 44. a5 {[%emt 0:01:35]} g5 {[%emt 0:00:00]} 45. a6 {[%emt 0:02:54]} Bd8 {[%emt 0:00:00]} 46. b7 {[%emt 0:05:18]} e4 {[%emt 0:00:00]} 47. Ra8 {[%emt 0:00:20]} Bc7 {[%emt 0:00:00]} 48. Rxb8 {[%emt 0:00:35]} Bxb8 {[%emt 0:00:00]} 49. a7 {[%emt 0:00:10]} 1-0

[Event "9. Korbacher Open 2017"]
[Site "Korbach"]
[Date "2017.10.22"]
[Round "6"]
[White "Held, Martin"]
[Black "Simukov, Erik"]
[Result "1-0"]
[ECO "C54"]
[WhiteElo "1821"]
[BlackElo "1621"]
[Annotator "NA"]
[PlyCount "53"]
[EventDate "2017.??.??"]
[EventType "swiss"]
[EventCountry "GER"]
[SourceTitle "playchess.com"]
[Source "ChessBase"]
[SourceQuality "1"]
[TimeControl "40/5400+30:1800+30"]

1. e4 {[%emt 0:00:00]} e5 {[%emt 0:00:12]} 2. Nf3 {[%emt 0:00:00]} Nc6 {[%emt 0:00:15]} 3. Bc4 {[%emt 0:00:06]} Bc5 {[%emt 0:00:30]} 4. c3 {[%emt 0:00:23]} Nf6 {[%emt 0:00:26]} 5. d4 {[%emt 0:00:31]} exd4 {[%emt 0:00:19]} 6. cxd4 {[%emt 0:00:15]} Bb4+ {[%emt 0:01:04]} 7. Nc3 {[%emt 0:00:18]} Nxe4 {[%emt 0:01:04]} 8. O-O {[%emt 0:01:57]} Bxc3 {[%emt 0:00:34]} 9. d5 {[%emt 0:00:10]} Bf6 {[%emt 0:01:22]} 10. Re1 {[%emt 0:00:53]} Ne7 {[%emt 0:00:52]} 11. Rxe4 {[%emt 0:00:57]} d6 {[%emt 0:00:34]} 12. Bg5 {[%emt 0:02:23]} Bxg5 {[%emt 0:02:10]} 13. Nxg5 {[%emt 0:00:06]} h6 {[%emt 0:02:05] LiveBook: 58 Games} 14. Qe2 {[%emt 0:02:17]} hxg5 {[%emt 0:00:13]} 15. Re1 {[%emt 0:00:27] [#]} Be6 $1 {[%emt 0:00:12]} 16. dxe6 {[%emt 0:01:07]} f6 {[%emt 0:00:07]} 17. Re3 {[%emt 0:04:20]} c6 $17 {[%emt 0:13:21]} 18. Rh3 {[%emt 0:19:38]} Rxh3 {[%emt 0:00:13]} 19. gxh3 {[%emt 0:05:54]} g6 {[%emt 0:00:20]} 20. Rd1 {[%emt 0:19:31]} Nf5 {[%emt 0:12:10]} 21. Bd3 {[%emt 0:03:11]} Ke7 {[%emt 0:06:27]} 22. Bxf5 {[%emt 0:04:39]} gxf5 {[%emt 0:00:06]} 23. Qd3 {[%emt 0:01:00]} Qc7 {[%emt 0:02:20]} 24. Qxf5 {[%emt 0:01:35]} Rh8 {[%emt 0:00:09]} 25. Qg6 {[%emt 0:02:34]} Rh4 {[%emt 0:10:43]} 26. Qg7+ {[%emt 0:00:59]} Kd8 {[%emt 0:00:08]} 27. Qf8# {[%emt 0:00:11]} 1-0

[Event "9. Korbacher Open 2017"]
[Site "Korbach"]
[Date "2017.10.22"]
[Round "6"]
[White "Powalla, Christian"]
[Black "Alkayas, Shadi"]
[Result "1-0"]
[ECO "C50"]
[WhiteElo "1816"]
[BlackElo "1975"]
[Annotator "NA"]
[PlyCount "67"]
[EventDate "2017.??.??"]
[EventType "swiss"]
[EventCountry "GER"]
[SourceTitle "playchess.com"]
[Source "ChessBase"]
[SourceQuality "1"]
[TimeControl "40/5400+30:1800+30"]

1. e4 {[%emt 0:00:00]} e5 {[%emt 0:00:14]} 2. Nf3 {[%emt 0:00:00]} Nc6 {[%emt 0:00:17]} 3. Bc4 {[%emt 0:00:00]} Nd4 {[%emt 0:02:01]} 4. Nxd4 {[%emt 0:02:28]} exd4 {[%emt 0:00:02]} 5. O-O {[%emt 0:00:18]} Bc5 {[%emt 0:00:16] [#]} 6. d3 {[%emt 0:00:09]} (6. Bxf7+ $1 $18 {[%mdl 512] and White stays clearly on top.} Kf8 (6... Kxf7 7. Qh5+) 7. d3) 6... d6 {[%emt 0:00:38]} 7. f4 {[%emt 0:03:58]} Be6 {[%emt 0:00:06]} 8. Bxe6 {[%emt 0:02:28]} fxe6 {[%emt 0:00:01]} 9. b4 {[%emt 0:03:09]} Bb6 {[%emt 0:05:10]} 10. f5 {[%emt 0:02:34]} e5 {[%emt 0:00:52]} 11. Qh5+ {[%emt 0:00:15]} Kd7 {[%emt 0:01:06]} 12. Qf7+ {[%emt 0:15:15]} (12. Qg4 $16 Nf6 13. Qxg7+ Qe7 14. Qxe7+ Kxe7 15. Nd2) 12... Qe7 {[%emt 0:00:40]} 13. Qxe7+ {[%emt 0:00:16]} Kxe7 {[%emt 0:00:08]} 14. g4 {[%emt 0:00:51]} h6 $14 {[%emt 0:01:32]} (14... d5 $5) 15. h4 {[%emt 0:00:54]} Nf6 {[%emt 0:01:43]} 16. g5 {[%emt 0:03:08]} Nh5 {[%emt 0:00:01]} 17. Nd2 {[%emt 0:05:24]} c6 {[%emt 0:10:28]} 18. Nf3 {[%emt 0:02:40]} Raf8 {[%emt 0:02:42]} 19. Kg2 {[%emt 0:01:41]} Bd8 {[%emt 0:07:20]} 20. Kh3 {[%emt 0:04:27]} Ke8 {[%emt 0:05:22]} 21. Kg4 {[%emt 0:00:36]} hxg5 {[%emt 0:00:27]} 22. hxg5 {[%emt 0:00:17]} Rh7 {[%emt 0:11:20]} 23. Bd2 {[%emt 0:05:13]} Kd7 {[%emt 0:07:41]} 24. Nh4 {[%emt 0:04:24]} Nf4 {[%emt 0:11:22]} 25. Bxf4 {[%emt 0:00:28]} exf4 {[%emt 0:00:08]} 26. Ng6 {[%emt 0:00:49]} Re8 {[%emt 0:00:19]} 27. Rh1 {[%emt 0:01:20]} Rxh1 {[%emt 0:00:24]} 28. Rxh1 {[%emt 0:00:04]} Rg8 {[%emt 0:01:21]} 29. Nxf4 {[%emt 0:00:29]} Ke8 {[%emt 0:01:33]} 30. Ne6 {[%emt 0:00:21]} Be7 {[%emt 0:00:42]} 31. Nxd4 {[%emt 0:00:18]} Kf7 {[%emt 0:04:10]} 32. Ne6 {[%emt 0:01:40]} Rc8 {[%emt 0:01:18]} 33. Rh7 {[%emt 0:03:22]} Kg8 {[%emt 0:00:02]} 34. Rxg7+ {[%emt 0:00:10] Bf8 Rh7 Kf7 Rh8} 1-0

[Event "9. Korbacher Open 2017"]
[Site "Korbach"]
[Date "2017.10.22"]
[Round "6"]
[White "Achermann, Didier"]
[Black "Stahnke, Thorsten"]
[Result "0-1"]
[ECO "B34"]
[WhiteElo "1811"]
[BlackElo "2026"]
[Annotator "NA"]
[PlyCount "101"]
[EventDate "2017.??.??"]
[EventType "swiss"]
[EventCountry "GER"]
[SourceTitle "playchess.com"]
[Source "ChessBase"]
[SourceQuality "1"]
[TimeControl "40/5400+30:1800+30"]

1. e4 {[%emt 0:00:00]} c5 {[%emt 0:00:12]} 2. Nf3 {[%emt 0:00:00]} Nc6 {[%emt 0:00:06]} 3. d4 {[%emt 0:00:30]} cxd4 {[%emt 0:00:07]} 4. Nxd4 {[%emt 0:00:06]} g6 {[%emt 0:00:19]} 5. Nc3 {[%emt 0:00:46]} Bg7 {[%emt 0:00:11]} 6. Be3 {[%emt 0:00:17]} Nf6 {[%emt 0:00:14]} 7. f3 {[%emt 0:00:30]} O-O {[%emt 0:00:57]} 8. Qd2 {[%emt 0:00:07]} d5 {[%emt 0:01:51]} 9. Nxc6 {[%emt 0:15:13]} bxc6 {[%emt 0:00:10]} 10. e5 {[%emt 0:00:14]} Nd7 {[%emt 0:01:18]} 11. f4 {[%emt 0:00:09]} Qa5 {[%emt 0:01:03]} 12. g4 {[%emt 0:17:42] [#]} ({Better is} 12. a3 $15) 12... e6 {[%emt 0:01:44]} (12... g5 $1 $19 {[%mdl 512]} 13. Bd3 (13. fxg5 Nxe5) 13... Rb8) 13. g5 {[%emt 0:03:39]} Rb8 {[%emt 0:12:07]} 14. b3 {[%emt 0:00:44]} c5 {[%emt 0:01:38]} 15. Bf2 {[%emt 0:03:36]} Nxe5 {[%emt 0:02:45]} 16. fxe5 {[%emt 0:23:25]} Bxe5 {[%emt 0:00:11]} 17. Ne2 {[%emt 0:00:07]} Qxd2+ {[%emt 0:00:52]} 18. Kxd2 {[%emt 0:05:53]} Bxa1 {[%emt 0:00:07]} 19. Bxc5 {[%emt 0:00:06]} Be5 {[%emt 0:03:43]} 20. Bxf8 {[%emt 0:00:32]} Kxf8 {[%emt 0:00:06]} 21. h4 {[%emt 0:01:17]} Ba6 {[%emt 0:01:35]} 22. Ng3 {[%emt 0:02:32]} Bxf1 {[%emt 0:00:27]} 23. Nxf1 {[%emt 0:00:05]} Bf4+ {[%emt 0:03:58]} 24. Kd3 $19 {[%emt 0:02:33]} e5 {[%emt 0:00:23]} 25. Ne3 {[%emt 0:01:04]} Bxe3 {[%emt 0:00:10]} 26. Kxe3 {[%emt 0:00:06]} Rb4 {[%emt 0:01:44]} 27. Rh2 {[%emt 0:01:14]} Rg4 {[%emt 0:01:10]} 28. Kf3 {[%emt 0:01:00]} Rf4+ {[%emt 0:00:20]} 29. Kg3 {[%emt 0:00:39]} Ke7 {[%emt 0:00:39]} 30. h5 {[%emt 0:01:40]} Ke6 {[%emt 0:00:22]} 31. hxg6 {[%emt 0:00:07]} hxg6 {[%emt 0:00:10]} 32. Rh7 {[%emt 0:00:30]} Rf5 {[%emt 0:01:46]} 33. Rh8 {[%emt 0:00:13]} Rxg5+ {[%emt 0:00:17]} 34. Kf2 {[%emt 0:00:04]} Rh5 {[%emt 0:00:30]} 35. Ra8 {[%emt 0:00:30]} Rh2+ {[%emt 0:00:13]} 36. Kf3 {[%emt 0:00:10]} Rxc2 {[%emt 0:00:19]} 37. Rxa7 {[%emt 0:00:05]} f5 {[%emt 0:02:24]} 38. b4 {[%emt 0:00:31]} Rb2 {[%emt 0:00:22]} 39. a3 {[%emt 0:00:04]} Rb3+ {[%emt 0:00:11]} 40. Ke2 {[%emt 0:00:12]} f4 {[%emt 0:30:20]} 41. Ra6+ {[%emt 0:30:17]} Kf5 {[%emt 0:00:11]} 42. Ra5 {[%emt 0:00:08]} g5 {[%emt 0:01:38]} 43. b5 {[%emt 0:00:05]} g4 {[%emt 0:00:17]} 44. a4 {[%emt 0:00:09]} g3 {[%emt 0:00:44]} 45. b6 {[%emt 0:01:15]} Rb2+ {[%emt 0:00:48]} 46. Kf1 {[%emt 0:00:31]} Rxb6 {[%emt 0:00:23]} 47. Rxd5 {[%emt 0:00:23]} Rb2 {[%emt 0:00:39]} 48. a5 {[%emt 0:01:38]} Ra2 {[%emt 0:00:12]} 49. Rb5 {[%emt 0:00:43]} f3 {[%emt 0:00:23]} 50. Rb1 {[%emt 0:01:03]} Rxa5 {[%emt 0:00:16]} 51. Ra1 0-1

[Event "9. Korbacher Open 2017"]
[Site "Korbach"]
[Date "2017.10.22"]
[Round "6"]
[White "Hild, Sebastian"]
[Black "Launert, Martin"]
[Result "1/2-1/2"]
[ECO "C44"]
[WhiteElo "1786"]
[BlackElo "1879"]
[Annotator "NA"]
[PlyCount "85"]
[EventDate "2017.??.??"]
[EventType "swiss"]
[EventCountry "GER"]
[SourceTitle "playchess.com"]
[Source "ChessBase"]
[SourceQuality "1"]
[TimeControl "40/5400+30:1800+30"]

1. e4 {[%emt 0:00:00]} e5 {[%emt 0:00:04]} 2. Nf3 {[%emt 0:00:00]} Nc6 {[%emt 0:00:04]} 3. d4 {[%emt 0:00:51]} exd4 {[%emt 0:00:06]} 4. Nxd4 {[%emt 0:00:03]} Nf6 {[%emt 0:00:57]} 5. Nxc6 {[%emt 0:03:58]} bxc6 {[%emt 0:00:06]} 6. Bd3 {[%emt 0:00:31]} Be7 {[%emt 0:03:33]} 7. O-O {[%emt 0:00:43]} O-O {[%emt 0:01:58]} 8. c4 {[%emt 0:00:38]} d5 {[%emt 0:11:39]} 9. exd5 {[%emt 0:02:20]} cxd5 {[%emt 0:02:20]} 10. cxd5 {[%emt 0:00:55]} Nxd5 {[%emt 0:04:01]} 11. a3 {[%emt 0:07:14]} Bf6 $11 {[%emt 0:06:23]} 12. Qc2 {[%emt 0:03:56]} g6 {[%emt 0:06:54]} 13. Bd2 {[%emt 0:00:45]} Bb7 {[%emt 0:12:35]} 14. Nc3 {[%emt 0:01:01]} Nxc3 {[%emt 0:06:27]} 15. Bxc3 {[%emt 0:00:21]} Bxc3 {[%emt 0:04:47]} 16. Qxc3 {[%emt 0:01:12]} Qg5 {[%emt 0:00:46]} 17. f3 {[%emt 0:03:23]} c5 {[%emt 0:01:19]} 18. Bc4 {[%emt 0:09:38]} Rad8 {[%emt 0:04:12]} 19. Rad1 {[%emt 0:04:00]} Bc6 {[%emt 0:05:08]} 20. Qc1 {[%emt 0:09:05]} Qf6 {[%emt 0:01:06]} 21. b3 {[%emt 0:01:50]} Rd4 {[%emt 0:03:49]} 22. Qe3 {[%emt 0:03:28]} Re8 {[%emt 0:02:49]} 23. Qf2 {[%emt 0:00:22]} Red8 {[%emt 0:00:18]} 24. Rxd4 {[%emt 0:01:06]} Rxd4 {[%emt 0:00:17]} 25. Qe3 {[%emt 0:03:29]} a5 {[%emt 0:02:11]} 26. a4 {[%emt 0:00:16]} Bxa4 {[%emt 0:01:10]} 27. Qc3 {[%emt 0:05:55]} Bc6 {[%emt 0:01:42]} 28. Qxa5 {[%emt 0:01:42]} Qg5 {[%emt 0:00:43]} 29. Qc3 {[%emt 0:10:48]} Bd5 {[%emt 0:03:00]} 30. Bxd5 {[%emt 0:08:18]} Qxd5 {[%emt 0:00:41]} 31. Rc1 {[%emt 0:01:19]} Rd1+ {[%emt 0:02:34]} 32. Rxd1 {[%emt 0:00:36]} Qxd1+ {[%emt 0:00:03]} 33. Kf2 {[%emt 0:00:11]} Qd5 {[%emt 0:00:53]} 34. Qc4 {[%emt 0:10:45]} Qxc4 {[%emt 0:05:43]} 35. bxc4 {[%emt 0:00:02]} Kf8 {[%emt 0:00:39]} 36. Ke3 {[%emt 0:00:20]} Ke7 {[%emt 0:00:24]} 37. Ke4 {[%emt 0:00:14]} Ke6 {[%emt 0:00:21]} 38. g4 {[%emt 0:00:27]} h6 {[%emt 0:02:54]} 39. h4 {[%emt 0:01:59]} f6 {[%emt 0:01:47]} 40. f4 {[%emt 0:02:56]} f5+ {[%emt 0:31:20]} 41. gxf5+ {[%emt 0:03:43]} gxf5+ {[%emt 0:00:00]} 42. Ke3 {[%emt 0:00:48]} Kd6 {[%emt 0:00:00]} 43. Kd3 {[%emt 0:00:15]} 1/2-1/2

[Event "9. Korbacher Open 2017"]
[Site "Korbach"]
[Date "2017.10.22"]
[Round "6"]
[White "Aardenburg, Piet"]
[Black "Sakhra, Roman"]
[Result "1-0"]
[ECO "D02"]
[WhiteElo "1782"]
[BlackElo "1489"]
[Annotator "NA"]
[PlyCount "57"]
[EventDate "2017.??.??"]
[EventType "swiss"]
[EventCountry "GER"]
[SourceTitle "playchess.com"]
[Source "ChessBase"]
[SourceQuality "1"]
[TimeControl "40/5400+30:1800+30"]

1. d4 {[%emt 0:00:00]} d5 {[%emt 0:00:09]} 2. Nf3 {[%emt 0:00:00]} Nf6 {[%emt 0:00:08]} 3. Bf4 {[%emt 0:03:08]} e6 {[%emt 0:00:53]} 4. e3 {[%emt 0:00:18]} c5 {[%emt 0:00:21]} 5. Be2 {[%emt 0:03:54]} Nc6 {[%emt 0:12:22]} 6. O-O {[%emt 0:02:23]} Be7 {[%emt 0:00:34]} 7. c4 {[%emt 0:03:27]} Nh5 {[%emt 0:04:45]} 8. Be5 {[%emt 0:12:56]} cxd4 {[%emt 0:08:41]} 9. Bxd4 {[%emt 0:06:07]} Nxd4 {[%emt 0:01:09]} 10. Nxd4 {[%emt 0:02:08]} Nf6 {[%emt 0:00:36]} 11. Nc3 {[%emt 0:02:35]} O-O {[%emt 0:00:26]} 12. Qb3 {[%emt 0:07:08]} dxc4 {[%emt 0:15:08]} 13. Bxc4 {[%emt 0:01:11]} a6 {[%emt 0:02:04]} 14. Rfd1 {[%emt 0:01:43]} Qc7 {[%emt 0:01:13]} 15. Be2 {[%emt 0:02:00]} b5 {[%emt 0:00:34]} 16. Rac1 {[%emt 0:00:43]} Qb6 {[%emt 0:06:06]} 17. Bf3 {[%emt 0:11:36]} Bb7 {[%emt 0:01:04]} 18. Na4 {[%emt 0:06:40]} Qa7 {[%emt 0:06:40]} 19. Rc7 Bd5 {[%emt 0:00:45]} 20. Rxa7 {[%emt 0:07:10]} Bxb3 21. Bxa8 {[%emt 0:03:22]} Bxd1 {[%emt 0:01:26]} 22. Nc3 {[%emt 0:00:10]} Bh5 {[%emt 0:04:26]} 23. Rxa6 {[%emt 0:03:19]} Rd8 {[%emt 0:02:45]} 24. Nc6 {[%emt 0:03:01]} Rd7 {[%emt 0:02:40]} 25. Nxe7+ {[%emt 0:00:19]} Rxe7 {[%emt 0:00:05]} 26. Bc6 {[%emt 0:01:15]} h6 {[%emt 0:00:52]} 27. Bxb5 {[%emt 0:00:40]} Rb7 {[%emt 0:01:40]} 28. a4 {[%emt 0:01:23]} Rc7 {[%emt 0:03:35]} 29. Rc6 {[%emt 0:00:49]} 1-0

[Event "9. Korbacher Open 2017"]
[Site "Korbach"]
[Date "2017.10.22"]
[Round "6"]
[White "Deutsch, Christoph"]
[Black "Buese, Ralf"]
[Result "1/2-1/2"]
[ECO "C01"]
[WhiteElo "1755"]
[BlackElo "1892"]
[Annotator "NA"]
[PlyCount "33"]
[EventDate "2017.??.??"]
[EventType "swiss"]
[EventCountry "GER"]
[SourceTitle "playchess.com"]
[Source "ChessBase"]
[SourceQuality "1"]
[TimeControl "40/5400+30:1800+30"]

{[%evp 11,32,31,42,6,13,23,48,32767,32767,32767,32767,32767,20,-9,7,8,14,0,6,0,8,1,0]} 1. e4 {[%emt 0:00:00]} e6 {[%emt 0:00:09]} 2. d4 {[%emt 0:00:00]} d5 {[%emt 0:00:02]} 3. exd5 {[%emt 0:00:01]} exd5 {[%emt 0:00:03]} 4. Nf3 {[%emt 0:00:15]} Bd6 {[%emt 0:01:37]} 5. c4 {[%emt 0:00:15]} c6 {[%emt 0:01:12]} 6. Nc3 {[%emt 0:00:34]} Ne7 {[%emt 0:02:54]} 7. Bd3 {[%emt 0:00:27]} dxc4 {[%emt 0:01:16]} 8. Bxc4 {[%emt 0:00:14]} Bf5 {[%emt 0:01:04]} 9. O-O {[%emt 0:01:13]} O-O {[%emt 0:00:45]} 10. Bg5 {[%emt 0:04:08]} h6 {[%emt 0:04:51]} 11. Bh4 {[%emt 0:01:28]} Nd7 {[%emt 0:01:28]} 12. Bg3 {[%emt 0:02:13]} Nb6 {[%emt 0:01:17]} 13. Bb3 {[%emt 0:01:06]} Bxg3 {[%emt 0:13:21]} 14. hxg3 {[%emt 0:00:32]} Ned5 {[%emt 0:02:01]} 15. Qd2 {[%emt 0:03:14]} Qd6 {[%emt 0:00:26]} 16. Rfe1 {[%emt 0:03:17]} Rad8 $11 {[%emt 0:05:34]} 17. Re5 {[%emt 0:05:15]} 1/2-1/2

[Event "9. Korbacher Open 2017"]
[Site "Korbach"]
[Date "2017.10.22"]
[Round "6"]
[White "Naujocks, Christian"]
[Black "Mak, Nico"]
[Result "1-0"]
[ECO "C18"]
[WhiteElo "1654"]
[BlackElo "1799"]
[Annotator "NA"]
[PlyCount "36"]
[EventDate "2017.??.??"]
[EventType "swiss"]
[EventCountry "GER"]
[SourceTitle "playchess.com"]
[Source "ChessBase"]
[SourceQuality "1"]
[TimeControl "40/5400+30:1800+30"]

1. e4 {[%emt 0:00:00]} e6 {[%emt 0:00:05]} 2. d4 {[%emt 0:00:00]} d5 {[%emt 0:00:02]} 3. Nc3 {[%emt 0:00:00]} Bb4 {[%emt 0:00:18]} 4. e5 {[%emt 0:00:46]} c5 {[%emt 0:02:45]} 5. a3 {[%emt 0:02:25]} Bxc3+ {[%emt 0:00:07]} 6. bxc3 {[%emt 0:00:06]} Ne7 {[%emt 0:00:32]} 7. Qg4 {[%emt 0:01:38]} Ng6 {[%emt 0:05:04]} 8. h4 {[%emt 0:05:12]} Qc7 {[%emt 0:05:57]} 9. Nf3 {[%emt 0:02:58]} cxd4 {[%emt 0:00:35]} 10. Qxd4 {[%emt 0:02:13]} Bd7 {[%emt 0:02:13]} 11. Bd2 {[%emt 0:09:01]} Nc6 {[%emt 0:01:45]} 12. Qe3 {[%emt 0:02:15]} Ngxe5 {[%emt 0:02:24]} 13. Nxe5 {[%emt 0:01:48]} Nxe5 {[%emt 0:01:46]} 14. Qg3 {[%emt 0:00:21]} g6 {[%emt 0:05:30]} 15. Bg5 {[%emt 0:03:41]} Rc8 {[%emt 0:09:32]} 16. Bf6 {[%emt 0:03:03]} Rf8 {[%emt 0:09:11]} 17. Bxe5 {[%emt 0:01:39]} Qa5 {[%emt 0:00:22]} 18. Bf6 {[%emt 0:08:46]} Qc5 1-0

[Event "9. Korbacher Open 2017"]
[Site "Korbach"]
[Date "2017.10.22"]
[Round "7"]
[White "Roeberg, Frank"]
[Black "Trunz, Elena"]
[Result "1-0"]
[ECO "B91"]
[WhiteElo "2194"]
[BlackElo "2127"]
[Annotator "NA"]
[PlyCount "83"]
[EventDate "2017.??.??"]
[EventType "swiss"]
[EventCountry "GER"]
[SourceTitle "playchess.com"]
[Source "ChessBase"]
[SourceQuality "1"]
[TimeControl "40/5400+30:1800+30"]

1. e4 {[%emt 0:00:00]} c5 {[%emt 0:02:16]} 2. Nf3 {[%emt 0:00:00]} d6 {[%emt 0:00:06]} 3. d4 {[%emt 0:00:18]} cxd4 {[%emt 0:00:04]} 4. Nxd4 {[%emt 0:00:07]} Nf6 {[%emt 0:00:20]} 5. Nc3 {[%emt 0:00:12]} a6 {[%emt 0:00:06]} 6. g3 {[%emt 0:00:20]} e5 {[%emt 0:03:06]} 7. Nde2 {[%emt 0:00:25]} Qc7 {[%emt 0:08:13]} 8. a4 {[%emt 0:03:32]} b6 {[%emt 0:05:47]} 9. Bg2 {[%emt 0:00:21]} Bb7 {[%emt 0:00:06]} 10. O-O {[%emt 0:00:11]} Nbd7 {[%emt 0:00:34]} 11. h3 {[%emt 0:02:18]} Nc5 {[%emt 0:01:12]} 12. Nd5 {[%emt 0:06:07]} Nxd5 {[%emt 0:00:55]} 13. exd5 {[%emt 0:00:08]} Be7 {[%emt 0:01:14]} 14. g4 {[%emt 0:02:00]} O-O {[%emt 0:04:42]} 15. Ng3 {[%emt 0:00:18]} Rfe8 {[%emt 0:03:33]} 16. Be3 {[%emt 0:03:43]} b5 {[%emt 0:03:16]} 17. Bxc5 {[%emt 0:02:36]} Qxc5 {[%emt 0:01:45]} 18. c3 {[%emt 0:01:04]} Rec8 {[%emt 0:09:57]} 19. Qd2 {[%emt 0:04:19]} Qb6 {[%emt 0:05:19]} 20. Kh2 {[%emt 0:02:06]} Rc4 {[%emt 0:03:43]} 21. axb5 {[%emt 0:00:27]} axb5 {[%emt 0:00:37]} 22. Rxa8+ {[%emt 0:00:09]} Bxa8 {[%emt 0:00:02]} 23. Nf5 {[%emt 0:01:33]} Bf8 {[%emt 0:00:22]} 24. Ne3 {[%emt 0:12:33]} Ra4 {[%emt 0:05:27]} 25. Nc2 {[%emt 0:00:42]} Be7 {[%emt 0:06:40]} 26. Nb4 {[%emt 0:00:48]} h6 {[%emt 0:01:06]} 27. f4 {[%emt 0:03:56]} Bf6 {[%emt 0:08:41]} 28. g5 {[%emt 0:02:09]} hxg5 {[%emt 0:00:21]} 29. fxg5 {[%emt 0:00:08]} Be7 {[%emt 0:00:19]} 30. h4 {[%emt 0:01:30]} g6 {[%emt 0:07:01]} 31. Qe2 {[%emt 0:04:06]} Bf8 {[%emt 0:01:26]} 32. Be4 {[%emt 0:00:55]} Bg7 {[%emt 0:03:08]} 33. h5 {[%emt 0:00:39]} gxh5 {[%emt 0:00:24]} 34. Qxh5 {[%emt 0:00:36]} Ra7 {[%emt 0:00:16]} 35. Qh3 {[%emt 0:05:20]} Rc7 {[%emt 0:05:28]} 36. g6 {[%emt 0:04:18]} f6 {[%emt 0:01:45]} 37. Bf5 {[%emt 0:00:58]} Re7 {[%emt 0:02:05]} 38. Be6+ {[%emt 0:00:14]} Kf8 {[%emt 0:00:03]} 39. Qh7 {[%emt 0:00:43]} Rxe6 {[%emt 0:00:11]} 40. dxe6 {[%emt 0:00:13]} Qb7 {[%emt 0:30:29]} 41. Nd5 {[%emt 0:32:40]} Qxd5 {[%emt 0:05:07]} 42. Rxf6+ {[%emt 0:00:07]} 1-0

[Event "9. Korbacher Open 2017"]
[Site "Korbach"]
[Date "2017.10.22"]
[Round "7"]
[White "Stork, Oliver"]
[Black "Koellner, Christof"]
[Result "0-1"]
[ECO "A20"]
[WhiteElo "2176"]
[BlackElo "2073"]
[Annotator "NA"]
[PlyCount "54"]
[EventDate "2017.??.??"]
[EventType "swiss"]
[EventCountry "GER"]
[SourceTitle "playchess.com"]
[Source "ChessBase"]
[SourceQuality "1"]
[TimeControl "40/5400+30:1800+30"]

1. c4 {[%emt 0:00:00]} e5 {[%emt 0:00:11]} 2. g3 {[%emt 0:00:00]} Nc6 {[%emt 0:00:14]} 3. Bg2 {[%emt 0:00:00]} Bc5 {[%emt 0:00:09]} 4. Nc3 {[%emt 0:00:00]} a6 {[%emt 0:00:15]} 5. e3 {[%emt 0:00:07]} d6 {[%emt 0:00:13]} 6. Nge2 {[%emt 0:00:12]} Ba7 {[%emt 0:00:04]} 7. d4 {[%emt 0:00:49]} exd4 {[%emt 0:01:12]} 8. exd4 {[%emt 0:00:08]} Nge7 {[%emt 0:00:07]} 9. O-O {[%emt 0:03:25]} O-O {[%emt 0:00:14]} 10. b3 {[%emt 0:03:34]} Nf5 {[%emt 0:00:50]} 11. d5 {[%emt 0:03:17]} Ne5 {[%emt 0:00:07]} 12. Bb2 {[%emt 0:02:23]} Re8 {[%emt 0:05:13]} 13. Rc1 {[%emt 0:08:55]} Qf6 {[%emt 0:10:16]} 14. Rc2 {[%emt 0:27:24]} Qh6 {[%emt 0:03:17]} 15. Ne4 {[%emt 0:21:28]} Ng4 {[%emt 0:16:33]} 16. h3 {[%emt 0:00:07]} Rxe4 {[%emt 0:08:40]} 17. Bc1 {[%emt 0:05:50]} g5 {[%emt 0:32:23]} 18. Bxg5 {[%emt 0:05:21]} Qxg5 {[%emt 0:00:46]} 19. Bxe4 {[%emt 0:00:05]} Nxf2 {[%emt 0:03:25]} 20. Rxf2 {[%emt 0:01:49]} Bxf2+ {[%emt 0:00:14]} 21. Kh1 {[%emt 0:00:49]} Ne3 {[%emt 0:06:16]} 22. Qd2 {[%emt 0:00:11]} Qe5 {[%emt 0:00:57]} 23. Nc3 {[%emt 0:01:55]} Nxc2 {[%emt 0:01:03]} 24. Qxf2 {[%emt 0:00:03]} f5 {[%emt 0:02:08]} 25. Bxc2 {[%emt 0:01:03]} Qxc3 {[%emt 0:00:18]} 26. Qe2 {[%emt 0:01:01]} Bd7 {[%emt 0:01:55]} 27. Qe7 {[%emt 0:00:42]} Re8 {[%emt 0:01:13]} 0-1